bitfinex/quotes_BTCUSD_20251224
["timestamp","ask_amount","ask_price","bid_price","bid_amount"]
[1766596226198,0.0114516,87324.0,87316.0,0.01148]
[1766596227128,1.44514886,87325.0,87316.0,0.01148]
[1766596228816,0.0114516,87324.0,87316.0,0.01148]
[1766596228969,1.38789147,87325.0,87316.0,0.01148]
[1766596229152,0.0114516,87324.0,87316.0,0.01148]
[1766596229359,1.44514926,87325.0,87316.0,0.01148]
[1766596229565,0.06870973,87324.0,87316.0,0.01148]
[1766596229776,0.0114516,87324.0,87316.0,0.01148]
[1766596229982,1.44514926,87325.0,87316.0,0.01148]
[1766596230183,0.0114516,87324.0,87316.0,0.01148]
[1766596230582,0.06870976,87324.0,87316.0,0.01148]
[1766596230786,0.0114516,87324.0,87316.0,0.01148]
[1766596231033,0.01145173,87323.0,87316.0,0.01148]
[1766596231233,0.06870976,87324.0,87316.0,0.01148]
[1766596231410,0.0114516,87324.0,87316.0,0.01148]
[1766596231822,1.37644,87325.0,87316.0,0.01148]
[1766596232872,0.05725849,87324.0,87316.0,0.01148]
[1766596233091,1.37644,87325.0,87316.0,0.01148]
[1766596233405,0.01145055,87332.0,87316.0,0.01148]
[1766596233406,1.32718,87339.0,87328.0,0.01145108]
[1766596233629,0.01148,87338.0,87328.0,0.01145108]
[1766596233830,0.01148,87338.0,87329.0,0.01145094]
[1766596234045,0.01148,87338.0,87328.0,0.068706]
[1766596234271,0.01148,87338.0,87329.0,0.06870531]
[1766596234468,0.01148,87338.0,87328.0,0.06870648]
[1766596234675,0.01148,87338.0,87328.0,0.01145108]
[1766596234911,0.01148,87338.0,87329.0,0.01145094]
[1766596236710,0.01148,87338.0,87328.0,0.06870622]
[1766596237266,0.01148,87338.0,87329.0,0.01145094]
[1766596237465,0.01148,87338.0,87330.0,0.01145081]
[1766596238160,0.01148,87338.0,87329.0,0.06870543]
[1766596238579,0.01148,87338.0,87329.0,0.01145094]
[1766596238818,0.01148,87338.0,87328.0,0.01145108]
[1766596239228,0.01148,87338.0,87327.0,0.06870725]
[1766596239517,0.01148,87338.0,87329.0,0.01145094]
[1766596239822,1.32623743,87339.0,87330.0,0.01145081]
[1766596240397,1.32623743,87339.0,87329.0,0.01145094]
[1766596240603,1.32623743,87339.0,87330.0,0.01145081]
[1766596240996,1.32623743,87339.0,87329.0,0.01145094]
[1766596241788,0.02292963,87339.0,87328.0,0.05786]
[1766596242004,0.01148,87339.0,87329.0,0.01145094]
[1766596242204,0.01148,87339.0,87328.0,0.06870637]
[1766596242416,0.02292963,87339.0,87327.0,0.08018602]
[1766596242627,0.02292963,87339.0,87327.0,0.02293121]
[1766596242826,0.01148,87339.0,87328.0,0.01145108]
[1766596243496,0.01148,87339.0,87329.0,0.01145094]
[1766596245165,0.01148,87339.0,87327.0,0.01148]
[1766596245399,0.00055,87329.0,87327.0,0.01148]
[1766596245856,0.01144976,87338.0,87327.0,0.01148]
[1766596246073,0.06869974,87338.0,87327.0,0.01148]
[1766596246982,0.01148,87339.0,87327.0,0.02293121]
[1766596247191,0.02292963,87339.0,87327.0,0.08018718]
[1766596247401,0.08017785,87339.0,87327.0,0.02293121]
[1766596247625,0.06869875,87338.0,87327.0,0.01148]
[1766596248075,0.01148,87339.0,87330.0,0.01145081]
[1766596248285,0.01148,87339.0,87327.0,0.02293121]
[1766596248286,0.01159,87342.0,87338.0,0.000549]
[1766596248499,0.01159,87342.0,87334.0,0.01145029]
[1766596248500,0.01159,87342.0,87335.0,0.01145016]
[1766596248724,0.01159,87342.0,87333.0,0.06870252]
[1766596248905,0.01159,87342.0,87334.0,0.06870142]
[1766596249111,0.01159,87342.0,87334.0,0.01145029]
[1766596249318,0.01159,87342.0,87333.0,0.06870252]
[1766596249513,0.01159,87342.0,87333.0,0.01145042]
[1766596249718,0.01159,87342.0,87332.0,0.06870314]
[1766596250023,0.01159,87342.0,87332.0,0.01155691]
[1766596250225,0.01159,87342.0,87332.0,0.00010636]
[1766596250375,0.40578624,87342.0,87332.0,0.00010636]
[1766596250571,0.22897105,87348.0,87332.0,0.00010636]
[1766596250572,0.01148,87347.0,87342.0,0.000439]
[1766596250784,0.01155741,87356.0,87342.0,0.000439]
[1766596250785,0.00011,87356.0,87350.0,0.01144819]
[1766596250988,0.00011,87356.0,87337.0,0.40567624]
[1766596250989,0.02292754,87355.0,87337.0,0.01148]
[1766596251268,0.05724262,87348.0,87337.0,0.01148]
[1766596251458,0.46343557,87350.0,87337.0,0.01148]
[1766596251666,0.05724639,87342.0,87337.0,0.01148]
[1766596251903,0.08017154,87347.0,87337.0,0.01148]
[1766596252034,0.01144872,87346.0,87337.0,0.01148]
[1766596252236,0.01144872,87346.0,87332.0,0.00010636]
[1766596252237,0.01144872,87346.0,87333.0,0.01148]
[1766596252462,0.06869334,87345.0,87333.0,0.01148]
[1766596252655,0.01144937,87341.0,87333.0,0.01148]
[1766596253613,0.0114495,87340.0,87333.0,0.01148]
[1766596253743,0.06869559,87342.0,87333.0,0.01148]
[1766596253942,0.06869641,87341.0,87333.0,0.01148]
[1766596254165,0.0114495,87340.0,87333.0,0.01148]
[1766596254513,0.01144924,87342.0,87333.0,0.01148]
[1766596254723,0.0114495,87340.0,87333.0,0.01148]
[1766596255305,0.01144845,87348.0,87340.0,0.000439]
[1766596255510,0.0572436,87346.0,87333.0,0.02293042]
[1766596255710,0.01144885,87345.0,87333.0,0.02293042]
[1766596255907,0.01144885,87345.0,87333.0,0.01148]
[1766596256245,0.06869389,87344.0,87333.0,0.01148]
[1766596256589,0.01144911,87343.0,87333.0,0.01148]
[1766596257141,0.06869389,87344.0,87333.0,0.01148]
[1766596257765,0.01144911,87343.0,87333.0,0.01148]
[1766596258215,0.01144937,87341.0,87333.0,0.01148]
[1766596258405,0.01144911,87343.0,87331.0,0.01148]
[1766596258406,0.00011,87333.0,87331.0,0.01148]
[1766596258576,0.01145029,87334.0,87325.0,0.01148]
[1766596259767,0.06870177,87334.0,87325.0,0.01148]
[1766596259965,0.01145055,87332.0,87325.0,0.01148]
[1766596260204,0.01145081,87330.0,87325.0,0.01137]
[1766596260402,0.01145081,87330.0,87315.0,0.01145278]
[1766596260403,0.01145094,87329.0,87319.0,0.03436916]
[1766596260604,0.06870673,87328.0,87319.0,0.01148]
[1766596260783,0.01145121,87327.0,87314.0,0.06871621]
[1766596261159,0.01145121,87327.0,87315.0,0.01148]
[1766596261160,0.01145134,87326.0,87315.0,0.01148]
[1766596261382,0.06870814,87326.0,87315.0,0.01148]
[1766596261552,0.01145134,87326.0,87315.0,0.01148]
[1766596261727,0.01145108,87328.0,87315.0,0.08019666]
[1766596261931,0.01145134,87326.0,87315.0,0.01148]
[1766596262146,0.06870668,87328.0,87316.0,0.01145265]
[1766596262348,0.01145121,87327.0,87315.0,0.02293278]
[1766596262529,0.01145134,87326.0,87315.0,0.01148]
[1766596262912,0.05725674,87326.0,87315.0,0.01148]
[1766596263118,0.01145226,87319.0,87315.0,0.01148]
[1766596263324,0.01145173,87323.0,87315.0,0.01148]
[1766596263554,0.01145094,87329.0,87315.0,0.02293278]
[1766596263762,0.03088516,87362.0,87315.0,0.02293278]
[1766596263763,0.01148,87333.0,87323.0,0.01145173]
[1766596264009,0.01156528,87333.0,87324.0,0.0114516]
[1766596264302,0.01156528,87333.0,87322.0,0.01145186]
[1766596264812,0.01156528,87333.0,87323.0,0.0687104]
[1766596265027,0.0114495,87340.0,87333.0,0.00046372]
[1766596265176,0.01148,87337.0,87333.0,0.00046372]
[1766596265595,0.0229299,87337.0,87325.0,0.06870878]
[1766596265781,0.08017941,87337.0,87325.0,0.01145147]
[1766596265986,0.06870032,87336.0,87323.0,0.01148]
[1766596266215,0.01145016,87335.0,87323.0,0.01156528]
[1766596266528,0.01148,87337.0,87324.0,0.0114516]
[1766596266731,0.01148,87337.0,87325.0,0.01145147]
[1766596267077,0.0229299,87337.0,87325.0,0.06870874]
[1766596267278,0.0229299,87337.0,87326.0,0.01145134]
[1766596267719,0.0229299,87337.0,87325.0,0.06870881]
[1766596268126,0.01148,87337.0,87326.0,0.01145134]
[1766596268324,0.01148,87337.0,87326.0,0.06870795]
[1766596268536,0.01148,87337.0,87326.0,0.01145134]
[1766596268904,0.01145003,87336.0,87324.0,0.06870837]
[1766596269098,0.06869896,87338.0,87326.0,0.01145134]
[1766596269242,0.01148,87337.0,87327.0,0.01145121]
[1766596269442,0.06870019,87336.0,87324.0,0.0114516]
[1766596270050,0.01145003,87336.0,87324.0,0.06870951]
[1766596270699,0.08017951,87337.0,87325.0,0.01145147]
[1766596271557,0.01145003,87336.0,87324.0,0.0114516]
[1766596271828,0.01145016,87335.0,87324.0,0.0114516]
[1766596272041,0.01145003,87336.0,87324.0,0.0114516]
[1766596272212,0.01148,87337.0,87327.0,0.01145121]
[1766596272760,0.01148,87337.0,87325.0,0.01145147]
[1766596273152,0.0229299,87337.0,87325.0,0.0687084]
[1766596273301,0.01148,87337.0,87326.0,0.06870792]
[1766596273941,0.01148,87337.0,87323.0,0.08027544]
[1766596273942,0.01145016,87335.0,87323.0,0.08027544]
[1766596274083,0.01145029,87334.0,87323.0,0.08027544]
[1766596274287,0.0687011,87335.0,87323.0,0.08027544]
[1766596274486,0.06870044,87336.0,87324.0,0.0114516]
[1766596274930,0.0229299,87337.0,87324.0,0.06870961]
[1766596275205,0.0229299,87337.0,87325.0,0.01145147]
[1766596275424,0.01145003,87336.0,87324.0,0.06870961]
[1766596276581,0.06872986,87337.0,87324.0,0.06870961]
[1766596276788,0.06872986,87337.0,87324.0,0.06870956]
[1766596276789,0.01145003,87336.0,87324.0,0.06870956]
[1766596277008,0.06870031,87336.0,87324.0,0.06870956]
[1766596277172,0.06870031,87336.0,87325.0,0.01145147]
[1766596277579,0.01145016,87335.0,87324.0,0.06870956]
[1766596277789,0.06870031,87336.0,87324.0,0.06870956]
[1766596277790,0.06870031,87336.0,87324.0,0.0114516]
[1766596278755,0.08018004,87337.0,87325.0,0.01145147]
[1766596278934,0.01145003,87336.0,87324.0,0.0114516]
[1766596279274,0.01145016,87335.0,87323.0,0.0802745]
[1766596279476,0.06870042,87336.0,87324.0,0.0114516]
[1766596279682,0.01145016,87335.0,87323.0,0.0802745]
[1766596279890,0.08018004,87337.0,86994.0,0.53446156]
[1766596279891,0.01145331,87311.0,87300.0,0.0004]
[1766596280097,0.05732758,87311.0,87300.0,0.0004]
[1766596280411,0.05732758,87311.0,87305.0,1.45e-06]
[1766596280412,0.06872224,87308.0,87305.0,1.45e-06]
[1766596280612,0.05726983,87306.0,87305.0,1.45e-06]
[1766596281017,0.05726971,87307.0,87305.0,1.45e-06]
[1766596281426,1.37904,87308.0,87305.0,1.45e-06]
[1766596281655,0.0114516,87324.0,87308.0,0.000463]
[1766596281860,0.06871135,87322.0,87309.0,0.01145357]
[1766596282108,0.01145226,87319.0,87308.0,0.000355]
[1766596282312,0.06871331,87320.0,87308.0,0.000355]
[1766596282518,0.01145226,87319.0,87308.0,0.000355]
[1766596282747,0.40556135,87320.0,87308.0,0.000355]
[1766596282951,0.01145239,87318.0,87308.0,0.000355]
[1766596283963,0.02293239,87318.0,87308.0,0.000355]
[1766596284622,0.08019467,87318.0,87308.0,0.000355]
[1766596285270,0.01148,87318.0,87308.0,0.000355]
[1766596286268,0.01148,87318.0,87309.0,0.01145357]
[1766596286480,1.37904,87324.0,87309.0,0.01145357]
[1766596286682,0.05725016,87336.0,87321.0,0.01145199]
[1766596286817,0.05725016,87336.0,87318.0,0.000463]
[1766596286818,0.01145055,87332.0,87318.0,0.01145239]
[1766596287018,0.01145081,87330.0,87317.0,0.05726201]
[1766596287219,0.01148,87329.0,87319.0,0.01145226]
[1766596287472,0.01148,87329.0,87319.0,0.06871301]
[1766596287713,0.02293094,87329.0,87318.0,0.01145239]
[1766596287864,0.01148,87329.0,87318.0,0.01145239]
[1766596288263,0.02293094,87329.0,87317.0,0.06871508]
[1766596288668,0.01148,87329.0,87318.0,0.01145239]
[1766596288874,0.01145121,87327.0,87315.0,0.02293278]
[1766596289143,0.01145108,87328.0,87317.0,0.01145252]
[1766596289506,0.02293094,87329.0,87317.0,0.01145252]
[1766596289942,0.01148,87329.0,87318.0,0.01145239]
[1766596290378,0.01145042,87333.0,87315.0,0.02293278]
[1766596290379,0.0114495,87340.0,87329.0,0.000463]
[1766596290581,0.01144911,87343.0,87324.0,0.01148]
[1766596290582,0.01148,87339.0,87324.0,0.01148]
[1766596290773,0.02292963,87339.0,87325.0,0.01148]
[1766596290928,0.08017913,87339.0,87326.0,0.01145134]
[1766596291129,0.05724939,87338.0,87326.0,0.01145134]
[1766596291332,0.01145029,87334.0,87325.0,0.01148]
[1766596291565,0.01145016,87335.0,87325.0,0.01148]
[1766596291742,0.05725069,87336.0,87325.0,0.01148]
[1766596291906,0.01148,87339.0,87327.0,0.05725549]
[1766596292337,0.06869915,87338.0,87325.0,0.02293147]
[1766596292542,0.06869915,87338.0,87326.0,0.01145134]
[1766596292932,0.0114499,87337.0,87325.0,0.08018865]
[1766596293113,0.01145003,87336.0,87325.0,0.01148]
[1766596293312,0.06870142,87335.0,87325.0,0.011394]
[1766596293536,0.01145016,87335.0,87325.0,0.011394]
[1766596293758,0.01145029,87334.0,87325.0,0.011394]
[1766596294089,0.06870159,87335.0,87325.0,0.01148]
[1766596294243,0.01145016,87335.0,87325.0,0.01148]
[1766596294653,0.06870023,87336.0,87325.0,0.01148]
[1766596294842,0.01144937,87341.0,87327.0,0.01145121]
[1766596295057,0.01144976,87338.0,87327.0,0.01145121]
[1766596295408,0.01148,87338.0,87329.0,0.01145094]
[1766596295621,0.01148,87338.0,87332.0,0.01145055]
[1766596295798,0.01148,87338.0,87330.0,0.01145081]
[1766596295981,0.01148,87338.0,87331.0,0.01145068]
[1766596296185,0.01148,87338.0,87330.0,0.01145081]
[1766596296685,0.06869563,87342.0,87328.0,0.06870526]
[1766596296686,0.06872741,87341.0,87328.0,0.06870526]
[1766596296894,0.08017678,87341.0,87329.0,0.01145094]
[1766596297473,0.0114495,87340.0,87328.0,0.08018526]
[1766596297667,0.0114495,87340.0,87329.0,0.01145094]
[1766596299239,0.001,87334.0,87329.0,0.01145094]
[1766596299389,0.000451,87334.0,87329.0,0.01145094]
[1766596299824,0.000451,87334.0,87328.0,0.01148]
[1766596300229,0.000451,87334.0,87328.0,0.02293108]
[1766596300481,0.000451,87334.0,87329.0,0.01145094]
[1766596301078,0.000451,87334.0,87328.0,0.01148]
[1766596301226,0.000451,87334.0,87329.0,0.01145094]
[1766596302219,0.000451,87334.0,87328.0,0.01148]
[1766596304452,0.000451,87334.0,87328.0,0.02293108]
[1766596304613,0.000451,87334.0,87329.0,0.01145094]
[1766596305060,0.000451,87334.0,87328.0,0.08018625]
[1766596305264,0.000451,87334.0,87329.0,0.01145094]
[1766596305475,0.000451,87334.0,87328.0,0.08018625]
[1766596306045,0.000451,87334.0,87328.0,0.01148]
[1766596306241,0.000451,87334.0,87326.0,0.01145134]
[1766596306443,0.000451,87334.0,87327.0,0.01148]
[1766596310832,1e-06,87334.0,87329.0,0.05725455]
[1766596311047,1e-06,87334.0,87329.0,0.06870549]
[1766596311257,1e-06,87334.0,87330.0,0.01145081]
[1766596312371,1e-06,87334.0,87329.0,0.01145094]
[1766596312921,1e-06,87334.0,87330.0,0.01145081]
[1766596313326,1e-06,87334.0,87329.0,0.01145094]
[1766596315008,1e-06,87334.0,87329.0,0.06870558]
[1766596315200,1e-06,87334.0,87330.0,0.01145081]
[1766596315400,1e-06,87334.0,87329.0,0.06870547]
[1766596315617,1e-06,87334.0,87330.0,0.01145081]
[1766596315822,1e-06,87334.0,87329.0,0.06870547]
[1766596316182,1e-06,87334.0,87328.0,0.06870596]
[1766596316422,1e-06,87334.0,87329.0,0.01145094]
[1766596316837,1e-06,87334.0,87327.0,0.080186]
[1766596317036,1e-06,87334.0,87327.0,0.01148]
[1766596318203,0.01145042,87333.0,87327.0,0.01093]
[1766596318422,0.06870393,87334.0,87327.0,0.01093]
[1766596318423,1e-06,87334.0,87327.0,0.01093]
[1766596320320,1.31731016,87335.0,87327.0,0.01093]
[1766596320915,1.37456123,87335.0,87327.0,0.01093]
[1766596321118,1.30586,87335.0,87327.0,0.01093]
[1766596321930,0.06869919,87338.0,87327.0,0.01093]
[1766596322092,0.01145003,87336.0,87327.0,0.01093]
[1766596322894,0.01145003,87336.0,87322.0,0.0687108]
[1766596322895,1.30786,87328.0,87314.0,0.24050574]
[1766596323105,0.40556003,87330.0,87316.0,0.01145265]
[1766596323297,0.01145081,87330.0,87316.0,0.01145265]
[1766596323535,0.0687067,87328.0,87314.0,0.08019743]
[1766596323736,0.01145121,87327.0,87315.0,0.01145278]
[1766596323938,0.06870808,87326.0,87314.0,0.02293291]
[1766596324137,0.01145134,87326.0,87315.0,0.01145278]
[1766596324350,0.0687073,87327.0,87315.0,0.01145278]
[1766596326128,0.01145134,87326.0,87314.0,0.08019688]
[1766596326352,0.01145134,87326.0,87315.0,0.01145278]
[1766596326728,0.01145094,87329.0,87314.0,0.08019688]
[1766596326729,0.05725935,87322.0,87314.0,0.01148]
[1766596326933,1.30786,87321.0,87313.0,0.01148]
[1766596327375,1.37657221,87321.0,87313.0,0.01148]
[1766596327735,1.30786,87321.0,87313.0,0.01148]
[1766596327933,1.31931199,87321.0,87313.0,0.01148]
[1766596328160,1.37657232,87321.0,87313.0,0.01148]
[1766596328368,1.31931199,87321.0,87313.0,0.01148]
[1766596328700,1.31931199,87321.0,87311.0,0.01148]
[1766596328925,1.30786,87321.0,87311.0,0.01148]
[1766596329143,1.70208906,87321.0,87311.0,0.01148]
[1766596329351,1.70208906,87321.0,87311.0,0.02293331]
[1766596329968,1.70208906,87321.0,87311.0,0.01148]
[1766596330189,1.3193095,87340.0,87322.0,0.01145186]
[1766596330364,0.05724885,87345.0,87330.0,0.01145081]
[1766596330567,0.01148,87344.0,87334.0,0.05725144]
[1766596330784,0.40570906,87344.0,87334.0,0.01145029]
[1766596331131,0.01144911,87343.0,87329.0,0.02293094]
[1766596331335,0.05724825,87339.0,87329.0,0.01148]
[1766596331530,0.0114499,87337.0,87329.0,0.01148]
[1766596331879,0.06869914,87338.0,87329.0,0.01148]
[1766596332530,0.01144963,87339.0,87329.0,0.01148]
[1766596332692,0.06869796,87339.0,87329.0,0.01148]
[1766596332903,0.01144963,87339.0,87329.0,0.01148]
[1766596333303,0.46292609,87340.0,87329.0,0.01148]
[1766596333506,0.39422906,87340.0,87330.0,0.01145081]
[1766596333715,0.01148,87344.0,87340.0,0.000549]
[1766596333918,0.02292898,87344.0,87329.0,0.01148]
[1766596334122,0.01145055,87332.0,87314.0,0.02290504]
[1766596334322,0.01145055,87332.0,87312.0,0.08162515]
[1766596334323,1.36511662,87327.0,87315.0,0.01148]
[1766596334538,0.06870871,87326.0,87315.0,0.01148]
[1766596334723,0.0114516,87324.0,87316.0,0.01148]
[1766596335158,0.06870893,87325.0,87313.0,0.01145304]
[1766596335360,0.01145147,87325.0,87317.0,0.01148]
[1766596335581,0.01145147,87325.0,87312.0,0.01145317]
[1766596335582,0.01145173,87323.0,87312.0,0.01145317]
[1766596335840,1.30786,87324.0,87316.0,0.01148]
[1766596336836,1.30786,87324.0,87316.0,0.02293265]
[1766596337042,0.01144937,87341.0,87324.0,0.000549]
[1766596337246,0.40570906,87340.0,87329.0,0.01145094]
[1766596337452,0.01148,87340.0,87332.0,0.01145055]
[1766596337661,0.01144937,87341.0,87329.0,0.01145094]
[1766596337861,0.01144937,87341.0,87328.0,0.05725487]
[1766596337862,0.01148,87340.0,87332.0,0.06870273]
[1766596338067,0.01148,87340.0,87331.0,0.01145068]
[1766596338068,0.01148,87342.0,87331.0,0.01145068]
[1766596338273,0.08017583,87342.0,87330.0,0.01145081]
[1766596338469,0.01148,87342.0,87331.0,0.01145068]
[1766596338674,0.01148,87342.0,87332.0,0.01145055]
[1766596338926,0.01148,87342.0,87333.0,0.01145042]
[1766596339330,0.01148,87342.0,87332.0,0.06870313]
[1766596339792,0.06869393,87344.0,87332.0,0.06870313]
[1766596339940,0.01144963,87339.0,87329.0,0.01148]
[1766596340159,0.39422906,87342.0,87329.0,0.02293094]
[1766596340365,1.31934,87346.0,87329.0,0.02293094]
[1766596340366,0.01144649,87363.0,87347.0,0.01144859]
[1766596340543,0.01144662,87362.0,87351.0,0.01144806]
[1766596340725,0.01144662,87362.0,87347.0,0.01144859]
[1766596340726,0.01144675,87361.0,87349.0,0.0686899]
[1766596341133,0.06868053,87361.0,87349.0,0.0686899]
[1766596341443,0.06868053,87361.0,87345.0,0.24045483]
[1766596341444,0.46291072,87360.0,87345.0,0.01148]
[1766596341642,0.01144727,87357.0,87345.0,0.01148]
[1766596341848,0.0686821,87359.0,87347.0,0.01144859]
[1766596342051,0.01144714,87358.0,87347.0,0.01144859]
[1766596342251,0.0686821,87359.0,87347.0,0.01144859]
[1766596342448,0.0686821,87359.0,87347.0,0.06869149]
[1766596342659,0.01144714,87358.0,87346.0,0.06869177]
[1766596342837,0.01144701,87359.0,87347.0,0.06869136]
[1766596343317,0.24040946,87364.0,87347.0,0.06869136]
[1766596343318,0.01144583,87368.0,87353.0,0.0114478]
[1766596343520,0.06402085,87388.0,87329.0,0.45803618]
[1766596343521,0.00489523,87362.0,87359.0,0.01199601]
[1766596343729,1.31930518,87373.0,87355.0,0.2289492]
[1766596343730,1.30786,87373.0,87364.0,0.01144636]
[1766596343874,0.01148,87379.0,87369.0,0.0114457]
[1766596344214,0.01144439,87379.0,87368.0,0.01144583]
[1766596344413,0.01144426,87380.0,87368.0,0.068675]
[1766596344685,0.01144426,87380.0,87366.0,0.06867657]
[1766596344686,0.01144452,87378.0,87366.0,0.06867657]
[1766596344851,0.01144452,87378.0,87365.0,0.08015713]
[1766596345049,0.01144452,87378.0,87366.0,0.0114461]
[1766596345197,1.30786,87388.0,87368.0,0.01144583]
[1766596345399,1.30786,87388.0,87365.0,0.02292623]
[1766596345400,0.03084756,87412.0,87365.0,0.02292623]
[1766596345401,1.30786,87396.0,87386.0,0.000549]
[1766596345623,0.08471034,87395.0,87386.0,0.000549]
[1766596345858,0.01144256,87393.0,87382.0,0.01148]
[1766596346106,0.05721359,87392.0,87382.0,0.01148]
[1766596346350,0.06865628,87392.0,87382.0,0.01148]
[1766596346558,0.01144295,87390.0,87382.0,0.01148]
[1766596347027,0.01144308,87389.0,87382.0,0.01148]
[1766596347230,0.01144321,87388.0,87382.0,0.01148]
[1766596347453,0.01144269,87392.0,87382.0,0.01148]
[1766596347657,0.06865708,87391.0,87382.0,0.01148]
[1766596347849,0.01144282,87391.0,87382.0,0.01148]
[1766596348050,0.06866074,87387.0,87382.0,0.01148]
[1766596348268,0.01144334,87387.0,87382.0,0.01148]
[1766596348411,0.01144295,87390.0,87382.0,0.01148]
[1766596348618,0.01144269,87392.0,87382.0,0.01148]
[1766596348825,0.01144256,87393.0,87382.0,0.022924]
[1766596349047,0.01144269,87392.0,87382.0,0.01148]
[1766596349958,0.06865576,87393.0,87382.0,0.01148]
[1766596350190,0.01144269,87392.0,87382.0,0.01148]
[1766596350358,0.06865648,87392.0,87382.0,0.01148]
[1766596350554,0.01144269,87392.0,87382.0,0.01148]
[1766596350755,0.01144282,87391.0,87382.0,0.01148]
[1766596351372,0.01144269,87392.0,87383.0,0.01148]
[1766596351570,0.01144282,87391.0,87383.0,0.01148]
[1766596351844,0.01144295,87390.0,87383.0,0.01148]
[1766596352664,0.01144308,87389.0,87383.0,0.01148]
[1766596353466,0.06865773,87390.0,87383.0,0.01148]
[1766596353844,0.01144308,87389.0,87383.0,0.01148]
[1766596354032,0.01144334,87387.0,87383.0,0.010931]
[1766596354234,0.01144348,87386.0,87383.0,0.010931]
[1766596354830,0.01144321,87388.0,87384.0,0.01148]
[1766596355031,0.01144334,87387.0,87384.0,0.01148]
[1766596355237,0.01144177,87399.0,87387.0,0.000549]
[1766596355458,0.01144204,87397.0,87387.0,0.000549]
[1766596355794,0.0114423,87395.0,87384.0,0.01148]
[1766596355935,0.0114423,87395.0,87384.0,0.01144374]
[1766596356135,0.06865391,87395.0,87385.0,0.01148]
[1766596356360,0.01144204,87397.0,87385.0,0.01148]
[1766596356361,0.01144321,87388.0,87385.0,0.01148]
[1766596357282,0.01144308,87389.0,87385.0,0.01148]
[1766596357481,0.06865831,87390.0,87385.0,0.01148]
[1766596357680,0.01144321,87388.0,87385.0,0.01148]
[1766596357886,0.06865917,87389.0,87385.0,0.01148]
[1766596358045,0.01144295,87390.0,87385.0,0.01148]
[1766596358046,0.06865773,87390.0,87385.0,0.01148]
[1766596358229,0.01144308,87389.0,87384.0,0.01148]
[1766596358427,0.06865773,87390.0,87384.0,0.01148]
[1766596358629,0.01144295,87390.0,87384.0,0.01148]
[1766596358886,0.0686593,87388.0,87384.0,0.01148]
[1766596359089,0.0686593,87388.0,87383.0,0.011835]
[1766596359090,0.05721825,87385.0,87383.0,0.011835]
[1766596359248,0.0686609,87386.0,87383.0,0.011835]
[1766596359774,0.01144348,87386.0,87383.0,0.011835]
[1766596360514,0.01144334,87387.0,87383.0,0.011835]
[1766596360739,0.01144321,87388.0,87387.0,0.001099]
[1766596360980,0.0686593,87388.0,87387.0,0.001099]
[1766596361323,0.06866034,87387.0,87383.0,0.011835]
[1766596361570,0.06866105,87386.0,87383.0,0.011835]
[1766596362072,0.06866034,87387.0,87383.0,0.011835]
[1766596362285,0.01144348,87386.0,87383.0,0.011835]
[1766596363233,0.06866034,87387.0,87383.0,0.011835]
[1766596364723,0.01144295,87390.0,87383.0,0.011835]
[1766596364923,0.05721544,87389.0,87383.0,0.011835]
[1766596365073,0.06865782,87390.0,87383.0,0.011835]
[1766596365464,0.01144321,87388.0,87383.0,0.011835]
[1766596365803,0.01144334,87387.0,87383.0,0.011835]
[1766596366958,0.06865939,87388.0,87383.0,0.011835]
[1766596367173,0.05721829,87385.0,87383.0,0.011835]
[1766596367349,0.06866094,87386.0,87383.0,0.011835]
[1766596367925,0.01144348,87386.0,87383.0,0.011835]
[1766596369133,0.01144348,87386.0,87372.0,0.0458]
[1766596369134,1.34662,87374.0,87357.0,0.01144727]
[1766596369377,1.34662,87374.0,87355.0,0.01144754]
[1766596369378,0.39367265,87370.0,87365.0,0.00011]
[1766596369560,0.01144544,87371.0,87365.0,0.00011]
[1766596369732,0.39367265,87375.0,87365.0,0.00011]
[1766596369733,1.4038387,87386.0,87374.0,0.01144505]
[1766596369898,1.4038387,87386.0,87371.0,0.01254444]
[1766596369899,0.39387265,87420.0,87377.0,0.01144465]
[1766596369900,0.46236765,87390.0,87377.0,0.01144465]
[1766596370087,0.40515265,87390.0,87377.0,0.02292465]
[1766596370285,0.40515265,87390.0,87379.0,0.01144439]
[1766596370488,0.40515265,87390.0,87380.0,0.01144426]
[1766596370893,0.01144334,87387.0,87377.0,0.01148]
[1766596372338,0.4165956,87390.0,87377.0,0.01148]
[1766596372339,0.40515265,87390.0,87379.0,0.01144439]
[1766596372545,0.22883319,87400.0,87377.0,0.06870275]
[1766596372546,0.00011,87398.0,87390.0,0.001099]
[1766596372762,0.00011,87398.0,87392.0,0.06865554]
[1766596372935,0.00011,87398.0,87394.0,0.01144243]
[1766596373296,0.00011,87398.0,87389.0,0.01148]
[1766596373496,0.0114423,87395.0,87389.0,0.01148]
[1766596374374,0.01144243,87394.0,87389.0,0.01148]
[1766596374586,0.01144269,87392.0,87389.0,0.01148]
[1766596374793,0.05721609,87388.0,87365.0,0.00011]
[1766596374953,0.06866188,87385.0,87373.0,0.01144518]
[1766596375154,0.01144348,87386.0,87374.0,0.08015019]
[1766596375361,0.05721937,87383.0,87374.0,0.01148]
[1766596375568,0.01144361,87385.0,87368.0,0.01144583]
[1766596375569,1.74029265,87384.0,87368.0,0.01144583]
[1766596375748,0.01144387,87383.0,87372.0,0.02292531]
[1766596376150,0.01144387,87383.0,87373.0,0.01144518]
[1766596376556,1.41528251,87384.0,87373.0,0.01144518]
[1766596377313,0.01144348,87386.0,87373.0,0.01144518]
[1766596377495,0.01144321,87388.0,87375.0,0.01144492]
[1766596377698,0.01144374,87384.0,87372.0,0.02292531]
[1766596377903,0.01144374,87384.0,87374.0,0.01144505]
[1766596378102,0.01144374,87384.0,87375.0,0.01148]
[1766596378304,0.011444,87382.0,87375.0,0.01148]
[1766596378508,0.01144413,87381.0,87375.0,0.01148]
[1766596378746,0.06866731,87378.0,87375.0,0.010931]
[1766596378952,0.05005449,87378.0,87375.0,0.010931]
[1766596379152,0.01144452,87378.0,87366.0,0.06867609]
[1766596379427,0.01144439,87379.0,87370.0,0.01148]
[1766596380311,0.01144452,87378.0,87370.0,0.01148]
[1766596380528,0.01144583,87368.0,87365.0,0.00021651]
[1766596380716,0.01144518,87373.0,87365.0,0.00021651]
[1766596380717,0.06867365,87370.0,87368.0,0.000549]
[1766596380921,0.06867423,87369.0,87368.0,0.000549]
[1766596381119,0.06867423,87369.0,87365.0,0.00021651]
[1766596381120,0.05723001,87367.0,87365.0,0.00021651]
[1766596381320,0.0114457,87369.0,87365.0,0.00021651]
[1766596381482,0.01144544,87371.0,87365.0,0.00021651]